Workbook

Sheet High Level Investment Plan
B1: Annexure F2B
B2: High Level Investment Plan
B3: Investment of 25 Years/Contract Period. | D3: Type of asset | E3: Will asset revert to TRIM at end of lease period? | F3: 2026 | G3: =F3+1 -> 2027 | H3: =G3+1 -> 2028 | I3: 2029 | J3: 2030 | K3: 2031 | L3: =K3+1 -> 2032 | M3: =L3+1 -> 2033 | N3: =M3+1 -> 2034 | O3: =N3+1 -> 2035 | P3: =O3+1 -> 2036 | Q3: 2037 | R3: =Q3+1 -> 2038 | S3: =R3+1 -> 2039 | T3: =S3+1 -> 2040 | U3: =T3+1 -> 2041 | V3: =U3+1 -> 2042 | W3: =V3+1 -> 2043 | X3: =W3+1 -> 2044 | Y3: =X3+1 -> 2045 | Z3: =Y3+1 -> 2046 | AA3: =Z3+1 -> 2047 | AB3: =AA3+1 -> 2048 | AC3: =AB3+1 -> 2049 | AD3: =AC3+1 -> 2050 | AE3: =AD3+1 -> 2051
B4: Description | D4: Immoveable or moveable | E4: Yes/No | F4: Year 0 | G4: Year 1 | H4: Year 2 | I4: Year 3 | J4: Year 4 | K4: Year 5 | L4: Year 6 | M4: Year 7 | N4: Year 8 | O4: Year 9 | P4: Year 10 | Q4: Year 11 | R4: Year 12 | S4: Year 13 | T4: Year 14 | U4: Year 15 | V4: Year 16 | W4: Year 17 | X4: Year 18 | Y4: Year 19 | Z4: Year 20 | AA4: Year 21 | AB4: Year 22 | AC4: Year 23 | AD4: Year 24 | AE4: Year 25 | AF4: Total Investment Amount
B5: Investment within leased portion of the B-Network boundary
B7: Land side upgrades on storage
B8: E.g 1. Paving of surface area 500 square meters | AF8: =SUM(F8:P8) -> R0
AF9: R0
B10: Building upgrades (e.g Office, ablution facilites,lighting etc.)
B11: E.g 1. Improving the roof of the building | AF11: R0
B12: 2. Changing the windows of the office | AF12: R0
AF13: R0
B14: Facility upgrades | AF14: R0
B15: E.g 1. Stations | AF15: R0
B16: 2. Sidings | AF16: R0
B17: 3. Terminals | AF17: R0
AF18: R0
AF19: R0
B20: Security upgrades (e.g fencing/walling, guard house etc.)
B21: E.g 1. Erecting electric fence around the leased area | AF21: =SUM(F21:P21) -> R0
B22: 2. Installing cameras and building a guardhouse | AF22: R0
AF23: R0
AF24: R0
AF25: R0
B26: Investment outside B network line boundary
B27: E.g 1. Erect sidewalk around the station and siding | AF27: R0
B28: 2. Installing street light | AF28: R0
AF29: R0
AF30: R0
AF31: R0
AF32: R0
AF33: R0
AF34: R0
AF35: R0
B36: Total Investment | F36: =SUM(F8:F35) -> R0 | G36: =SUM(G8:G35) -> R0 | H36: =SUM(H7:H35) -> R0 | I36: R0 | J36: R0 | K36: R0 | L36: R0 | M36: R0 | N36: R0 | O36: R0 | P36: R0 | Q36: R0 | R36: R0 | S36: R0 | T36: R0 | U36: R0 | V36: R0 | W36: R0 | X36: R0 | Y36: R0 | Z36: R0 | AA36: R0 | AB36: R0 | AC36: R0 | AD36: R0 | AE36: R0 | AF36: =SUM(AF8:AF35) -> R0
B37: Disclaimer:
B38: This information provided will be regarded as confidential and will be used to assess the reasonability of the requested lease period
